Workbook

Sheet NSU
B1: Essi Ilmanen | E1: 3.8.1998 Aura
B2: SUPERPESIS | E2: Runkosarja | I2: Kärkilyönnit (KL), pesänvälit | Q2: Runkosarja | U2: Ylempi loppusarja | Z2: Alempi loppusarja | AG2: Arvo-ottelut ja mitalit
B3: Vuosi | C3: Sija | D3: Seura | E3: OTT | F3: KUN | G3: LÖI | H3: TOI | I3: KL | J3: 0 > 1 | K3: 1 > 2 | L3: 2 > 3 | M3: 3 > k | N3: KL-% | P3: LÖI | Q3: TOI | R3: L+T | S3: KL | U3: OTT | V3: KUN | W3: LÖI | X3: TOI | Y3: KL | Z3: OTT | AA3: KUN | AB3: LÖI | AC3: TOI | AD3: KL | AE3: IL | AF3: LL | AG3: Halli | AH3: K | AI3: H | AJ3: P
B4: 2015 | C4: 7. | D4: PöU | F4: suomensarja | O4: 0
B5: 2016 | C5: 2. | D5: PöU | F5: suomensarja | O5: 0
B6: 2016 | C6: 3. | D6: MyVe | F6: ykköspesis
B7: 2017 | C7: 1. | D7: PöU | F7: suomensarja | O7: 0
B8: 2018 | C8: 2. | D8: PöU | F8: ykköspesis
B9: 2019 | C9: 1. | D9: PöU | F9: ykköspesis
B10: 2020 | C10: 3. | D10: PöU | F10: ykköspesis
B11: 2021 | C11: 1. | D11: PöU | F11: ykköspesis
B12: 2022 | C12: 4. | D12: MyVe | F12: ykköspesis
B13: 2022 | C13: 11. | D13: PöU | E13: 17 | F13: 1 | G13: 6 | H13: 8 | I13: 27 | J13: 12 | K13: 2 | L13: 6 | M13: 7 | N13: 47.4 % | O13: 57 | Z13: 4 | AA13: 0 | AB13: 6 | AC13: 3 | AD13: 12
B14: 2023 | C14: 1. | D14: PöU | F14: ykköspesis
B15: 2024 | C15: 11. | D15: PöU | E15: 24 | F15: 3 | G15: 27 | H15: 6 | I15: 79 | J15: 11 | K15: 9 | L15: 29 | M15: 30 | N15: 50.0 % | O15: 158 | Z15: 8 | AA15: 2 | AB15: 20 | AC15: 2 | AD15: 39
B16: Yhteensä | E16: =SUM(E4:E15) -> 41 | F16: 4 | G16: 33 | H16: 14 | I16: 106 | J16: 23 | K16: 11 | L16: 35 | M16: 37 | N16: =PRODUCT(I16/O16) -> 49.3 % | O16: =SUM(O5:O15) -> 215 | U16: =SUM(U4:U15) -> 0 | V16: 0 | W16: 0 | X16: 0 | Y16: 0 | Z16: 12 | AA16: 2 | AB16: 26 | AC16: 5 | AD16: 51 | AE16: 0 | AF16: 0 | AG16: 0 | AH16: 0 | AI16: 0 | AJ16: 0
B17: Pesispörssi | D17: =SUM(F16:H16)+((I16-F16-G16)/3)+(E16/3)+(AE16*25)+(AF16*25)+(AG16*10)+(AH16*25)+(AI16*20)+(AJ16*15) -> 87.7
B19: URA SUPERISSA | E19: OTT | F19: KUN | G19: LÖI | H19: TOI | I19: KL | K19: ka/L | L19: ka/T | M19: ka/KL | N19: K - % | P19: ENSIMMÄISET
B20: Runkosarja | E20: =PRODUCT(E16) -> 41 | F20: =PRODUCT(F16) -> 4 | G20: =PRODUCT(G16) -> 33 | H20: =PRODUCT(H16) -> 14 | I20: =PRODUCT(I16) -> 106 | K20: =PRODUCT((F20+G20)/E20) -> 0.90 | L20: =PRODUCT(H20/E20) -> 0.34 | M20: =PRODUCT(I20/E20) -> 2.59 | N20: =PRODUCT(N16) -> 49.3 % | O20: =PRODUCT(O16) -> 215 | P20: Ottelu | R20: 05.06. 2022 Manse PP - PöU 2-0 (4-3, 5-2) | AB20: 1. ottelu | AG20: 23 v 10 kk 2 pv
B21: Ylempi loppusarja | P21: Lyöty | R21: 08.07. 2022 Mailattaret - PöU 0-1 (2-2, 1-6) | AB21: 10. ottelu | AG21: 23 v 11 kk 5 pv
B22: Alempi loppusarja | E22: =PRODUCT(Z16) -> 12 | F22: =PRODUCT(AA16) -> 2 | G22: 26 | H22: 5 | I22: 51 | K22: =PRODUCT((F22+G22)/E22) -> 2.33 | L22: =PRODUCT(H22/E22) -> 0.42 | M22: =PRODUCT(I22/E22) -> 4.25 | N22: =PRODUCT(I22/O22) -> 53.7 % | O22: 95 | P22: Tuotu | R22: 08.07. 2022 Mailattaret - PöU 0-1 (2-2, 1-6) | AB22: 10. ottelu | AG22: 23 v 11 kk 5 pv
B23: KAIKKI | E23: =SUM(E20:E22) -> 53 | F23: =SUM(F20:F22) -> 6 | G23: =SUM(G20:G22) -> 59 | H23: =SUM(H20:H22) -> 19 | I23: =SUM(I20:I22) -> 157 | K23: =PRODUCT((F23+G23)/E23) -> 1.23 | L23: =PRODUCT(H23/E23) -> 0.36 | M23: =PRODUCT(I23/E23) -> 2.96 | N23: =PRODUCT(I23/O23) -> 50.6 % | O23: =SUM(O20:O22) -> 310 | P23: Kunnari | R23: 23.07. 2022 JoMa - PöU 2-1 (9-3, 4-8, 0-0, 3-2) | AB23: 11. ottelu | AG23: 23 v 11 kk 20 pv
B25: Vuoden pesäpalloilija (NYP) 2023
B27: Seurat | D27: Seurat | F27: PöU = Pöytyän Urheilijat (1945), kasvattasaeura
F28: MyVe = Mynämäen Vesa (1920)
F29: LaJy = Laitilan Jyske (1911)

Sheet NYP,NSS
B1: Essi Ilmanen | E1: 3.8.1998 Aura
B2: YKKÖSPESIS | E2: Runkosarja | L2: Runkosarja TOP-10 | Q2: Jatkosarjat | X2: SUOMENSARJA | AA2: Runkosarja | AH2: Runkosarja TOP-10 | AM2: Jatkosarjat
B3: Vuosi | C3: Sija | D3: Seura | E3: OTT | F3: KUN | G3: LÖI | H3: TOI | I3: KL | J3: KL-% | L3: LÖI | M3: TOI | N3: L+T | O3: KL | Q3: OTT | R3: KUN | S3: LÖI | T3: TOI | U3: KL | V3: KL-% | X3: Vuosi | Y3: Sija | Z3: Seura | AA3: OTT | AB3: KUN | AC3: LÖI | AD3: TOI | AE3: KL | AF3: KL-% | AH3: LÖI | AI3: TOI | AJ3: L+T | AK3: KL | AM3: OTT | AN3: KUN | AO3: LÖI | AP3: TOI | AQ3: KL | AR3: KL-%
X4: 2015 | Y4: 7. | Z4: PöU | AA4: 14 | AB4: 0 | AC4: 22 | AD4: 13 | AE4: 55 | AF4: 53.4 % | AG4: 103
B5: 2016 | C5: 3. | D5: MyVe | E5: 1 | F5: 0 | G5: 1 | H5: 0 | I5: 1 | J5: 50.0 % | K5: 2 | X5: 2016 | Y5: 2. | Z5: PöU | AA5: 14 | AB5: 3 | AC5: 33 | AD5: 21 | AE5: 74 | AF5: 66.1 % | AG5: 112 | AM5: 6 | AN5: 0 | AO5: 11 | AP5: 6 | AQ5: 25 | AR5: 58.1 % | AS5: 43
X6: 2017 | Y6: 1. | Z6: PöU | AA6: 16 | AB6: 5 | AC6: 30 | AD6: 28 | AE6: 84 | AF6: 65.6 % | AG6: 128 | AM6: 6 | AN6: 1 | AO6: 13 | AP6: 5 | AQ6: 30 | AR6: 76.9 % | AS6: 39
B7: 2018 | C7: 2. | D7: PöU | E7: 22 | F7: 3 | G7: 22 | H7: 18 | I7: 75 | J7: 53.6 % | K7: 140 | Q7: 5 | R7: 0 | S7: 5 | T7: 3 | U7: 11 | V7: 37.9 % | W7: 29
B8: 2019 | C8: 1. | D8: PöU | E8: 22 | F8: 2 | G8: 30 | H8: 13 | I8: 78 | J8: 59.5 % | K8: 131 | Q8: 5 | R8: 2 | S8: 7 | T8: 8 | U8: 22 | V8: 61.1 % | W8: 36
B9: 2020 | C9: 3. | D9: PöU | E9: 14 | F9: 0 | G9: 14 | H9: 7 | I9: 35 | J9: 66.0 % | K9: 53
B10: 2021 | C10: 1. | D10: PöU | E10: 13 | F10: 3 | G10: 8 | H10: 13 | I10: 37 | J10: 63.8 % | K10: 58.00282176 | Q10: 5 | R10: 1 | S10: 4 | T10: 5 | U10: 22 | V10: 71.0 % | W10: 31 | X10: 2021 | Y10: 2. | Z10: LaJy | AA10: 4 | AB10: 0 | AC10: 12 | AD10: 6 | AE10: 23 | AF10: 76.7 % | AG10: 30
B12: YHTEENSÄ | E12: =SUM(E4:E11) -> 72 | F12: =SUM(F4:F11) -> 8 | G12: =SUM(G4:G11) -> 75 | H12: =SUM(H4:H11) -> 51 | I12: =SUM(I4:I11) -> 226 | J12: =PRODUCT(I12/K12) -> 58.9 % | K12: =SUM(K4:K11) -> 384.0028218 | Q12: =SUM(Q4:Q11) -> 15 | R12: =SUM(R4:R11) -> 3 | S12: =SUM(S4:S11) -> 16 | T12: =SUM(T4:T11) -> 16 | U12: =SUM(U4:U11) -> 55 | V12: =PRODUCT(U12/W12) -> 57.3 % | W12: =SUM(W4:W11) -> 96 | X12: YHTEENSÄ | AA12: =SUM(AA4:AA11) -> 48 | AB12: =SUM(AB4:AB11) -> 8 | AC12: =SUM(AC4:AC11) -> 97 | AD12: =SUM(AD4:AD11) -> 68 | AE12: =SUM(AE4:AE11) -> 236 | AF12: =PRODUCT(AE12/AG12) -> 63.3 % | AG12: =SUM(AG4:AG11) -> 373 | AM12: =SUM(AM4:AM11) -> 12 | AN12: =SUM(AN4:AN11) -> 1 | AO12: =SUM(AO4:AO11) -> 24 | AP12: =SUM(AP4:AP11) -> 11 | AQ12: =SUM(AQ4:AQ11) -> 55 | AR12: =PRODUCT(AQ12/AS12) -> 67.1 % | AS12: =SUM(AS4:AS11) -> 82
B14: KAIKKI OTTELUT | E14: OTT | F14: KUN | G14: LÖI | H14: TOI | I14: KL | J14: KL-% | L14: ka/L | M14: ka/T | N14: ka/l+t | O14: ka/kl | R14: Seurat | T14: PöU = Pöytyän Urheilijat (1945), kasvattasaeura
B15: SUPERPESIS | E15: 17 | F15: 1 | G15: 6 | H15: 8 | I15: 27 | J15: 47.4 % | K15: =PRODUCT(I15/J15) -> 56.96202532 | L15: =PRODUCT((F15+G15)/E15) -> 0.41 | M15: =PRODUCT(H15/E15) -> 0.47 | N15: =PRODUCT((F15+G15+H15)/E15) -> 0.88 | O15: =PRODUCT(I15/E15) -> 1.59 | T15: MyVe = Mynämäen Vesa (1920)
B16: YKKÖSPESIS | E16: =PRODUCT(E12+Q12) -> 87 | F16: =PRODUCT(F12+R12) -> 11 | G16: =PRODUCT(G12+S12) -> 91 | H16: =PRODUCT(H12+T12) -> 67 | I16: =PRODUCT(I12+U12) -> 281 | J16: =PRODUCT(I16/K16) -> 58.5 % | K16: =PRODUCT(K12+W12) -> 480.0028218 | L16: =PRODUCT((F16+G16)/E16) -> 1.17 | M16: =PRODUCT(H16/E16) -> 0.77 | N16: =PRODUCT((F16+G16+H16)/E16) -> 1.94 | O16: =PRODUCT(I16/E16) -> 3.23 | T16: LaJy = Laitilan Jyske (1911)
B17: SUOMENSARJA | E17: =PRODUCT(AA12+AM12) -> 60 | F17: =PRODUCT(AB12+AN12) -> 9 | G17: =PRODUCT(AC12+AO12) -> 121 | H17: =PRODUCT(AD12+AP12) -> 79 | I17: =PRODUCT(AE12+AQ12) -> 291 | J17: =PRODUCT(I17/K17) -> 64.0 % | K17: =PRODUCT(AG12+AS12) -> 455 | L17: =PRODUCT((F17+G17)/E17) -> 2.17 | M17: =PRODUCT(H17/E17) -> 1.32 | N17: =PRODUCT((F17+G17+H17)/E17) -> 3.48 | O17: =PRODUCT(I17/E17) -> 4.85
B18: YHTEENSÄ | E18: =SUM(E15:E17) -> 164 | F18: =SUM(F15:F17) -> 21 | G18: 218 | H18: 154 | I18: 599 | J18: =PRODUCT(I18/K18) -> 60.4 % | K18: =SUM(K15:K17) -> 991.9648471 | L18: =PRODUCT((F18+G18)/E18) -> 1.46 | M18: =PRODUCT(H18/E18) -> 0.94 | N18: =PRODUCT((F18+G18+H18)/E18) -> 2.40 | O18: =PRODUCT(I18/E18) -> 3.65
